bitfinex-derivatives/quotes_ETHF0:USTF0_20260207
["timestamp","ask_amount","ask_price","bid_price","bid_amount"]
[1770451813567,2.33627846,2022.7,2021.9,0.00506155]
[1770451815168,2.33627846,2022.6,2021.9,0.00506155]
[1770451816068,2.33627846,2022.5,2021.3,2.25825285]
[1770451816272,2.33627846,2022.2,2021.1,2.25825285]
[1770451816482,2.33627846,2022.2,2021.4,2.25825285]
[1770451817177,2.33627846,2022.2,2021.4,2.26275495]
[1770451817872,2.33627846,2022.6,2021.6,2.25825285]
[1770451819776,0.00510055,2022.9,2022.1,2.25825285]
[1770451819971,0.00510055,2022.9,2022.1,2.50565285]
[1770451820167,1e-08,2022.9,2022.4,2.25825285]
[1770451820367,2.33627846,2023.4,2022.8,2.25825285]
[1770451820766,7.30772503,2024.2,2022.8,2.25825285]
[1770451820767,2.33627846,2024.1,2022.8,2.25825285]
[1770451820970,2.33627846,2024.1,2023.3,2.25825285]
[1770451821573,2.34173314,2024.1,2023.3,2.26357406]
[1770451821777,2.34173314,2024.1,2023.3,0.00532121]
[1770451822277,2.34173314,2024.1,2023.3,2.26357406]
[1770451823974,2.34173314,2024.1,2023.3,0.00532121]
[1770451826076,2.33627846,2023.8,2022.5,2.25825285]
[1770451826376,2.33627846,2024.0,2023.1,2.25825285]
[1770451826681,2.33627846,2024.0,2022.7,2.25825285]
[1770451826871,2.33627846,2024.0,2022.7,2.26326231]
[1770451827177,4.946,2023.9,2022.7,2.26326231]
[1770451827476,2.33627846,2023.8,2022.8,2.25825285]
[1770451828675,4.68e-06,2024.1,2023.6,5.33498375]
[1770451828874,8.79091229,2025.2,2023.6,5.33498375]
[1770451828875,2.33627846,2025.0,2024.0,2.25825285]
[1770451829776,2.33627846,2025.5,2024.0,2.50542285]
[1770451830073,2.34080597,2025.5,2024.0,2.50542285]
[1770451830472,2.34080597,2025.5,2024.2,2.25825285]
[1770451830674,2.34080597,2025.5,2024.3,2.25825285]
[1770451832578,2.34080597,2025.5,2024.3,2.50538285]
[1770451833377,0.00452751,2025.5,2024.3,2.50538285]
[1770451833580,2.34080597,2025.5,2024.3,2.50538285]
[1770451834471,2.34080597,2025.5,2024.2,0.00418828]
[1770451834872,2.34080597,2025.5,2024.2,2.26244113]
[1770451835275,2.34080597,2025.5,2024.2,2.50959113]
[1770451835774,2.34080597,2025.5,2024.4,2.50537285]
[1770451835970,2.34080597,2025.5,2024.5,0.24711]
[1770451836176,0.00452751,2025.5,2024.6,2.3049384]
[1770451836981,0.00452751,2025.5,2024.6,2.5520384]
[1770451837375,0.00452751,2025.5,2024.8,2.3049384]
[1770451837774,2.28981012,2025.8,2024.8,2.78050583]
[1770451838077,2.28981012,2025.8,2024.8,3.02757583]
[1770451838278,2.28981012,2025.8,2024.9,2.3049384]
[1770451838784,2.29398536,2025.8,2024.9,2.3049384]
[1770451841379,2.28981012,2026.3,2025.1,2.3049384]
[1770451841774,2.28981012,2026.3,2025.5,2.3049384]
[1770451842582,2.28981012,2026.7,2025.5,2.3049384]
[1770451842777,2.28981012,2026.6,2025.4,0.247]
[1770451843285,2.28981012,2026.6,2025.4,2.5519384]
[1770451844879,2.28981012,2026.6,2025.6,2.3049384]
[1770451845478,2.28981012,2026.6,2025.5,2.5519284]
[1770451846076,2.28981012,2026.6,2025.5,0.24699]
[1770451846482,2.28981012,2026.6,2025.5,2.5519284]
[1770451846882,2.2946817,2026.7,2025.9,2.3049384]
[1770451847188,2.2946817,2026.7,2025.9,2.31000681]
[1770451847388,2.2946817,2026.7,2025.9,0.00506841]
[1770451848185,2.2946817,2026.7,2025.9,2.31000681]
[1770451848988,2.28981012,2027.1,2026.3,2.3049384]
[1770451849286,2.28981012,2028.2,2026.5,2.3049384]
[1770451849684,2.37566874,2028.2,2026.5,2.3049384]
[1770451849888,2.37976625,2028.2,2026.7,0.24684]
[1770451850191,2.28981012,2028.0,2026.8,2.3049384]
[1770451850491,0.08995613,2028.2,2026.4,2.3049384]
[1770451850492,2.28981012,2027.6,2026.4,2.3049384]
[1770451850987,2.28981012,2027.4,2026.2,2.3049384]
[1770451851593,2.28981012,2027.5,2026.2,2.3049384]
[1770451851890,2.28981012,2027.5,2026.6,2.3049384]
[1770451853586,2.28981012,2027.5,2026.4,2.3049384]
[1770451855894,2.28981012,2027.3,2026.4,2.3049384]
[1770451856091,2.28981012,2027.2,2025.9,2.31000681]
[1770451856293,2.28981012,2027.1,2025.9,2.31000681]
[1770451856493,2.28981012,2027.0,2025.9,2.31000681]
[1770451857191,2.28981012,2026.9,2025.9,2.31000681]
[1770451857393,2.28981012,2026.8,2025.9,0.00506841]
[1770451857586,2.28981012,2026.7,2025.9,0.00506841]
[1770451857892,7.23955833,2026.7,2025.9,0.00506841]
[1770451858092,2.28981012,2026.6,2025.6,2.5519084]
[1770451858301,2.28981012,2026.5,2025.3,2.3049384]
[1770451858488,2.28981012,2026.3,2025.1,2.5519784]
[1770451858694,2.28981012,2026.1,2025.1,2.5519784]
[1770451858893,4.946,2026.0,2025.1,2.5519784]
[1770451859100,2.28981012,2025.9,2025.1,2.5567613]
[1770451859889,2.28981012,2025.9,2025.1,0.2518229]
[1770451860097,2.28981012,2025.9,2024.3,2.92326795]
[1770451860098,2.28981012,2025.4,2024.6,2.3049384]
[1770451860299,2.28981012,2025.3,2024.6,2.3049384]
[1770451860601,2.28981012,2025.7,2024.6,3.03613205]
[1770451860996,2.28981012,2025.7,2024.6,3.04010851]
[1770451861506,2.28981012,2026.1,2024.7,3.07677471]
[1770451861803,2.28981012,2025.9,2024.6,2.79300851]
[1770451862306,2.28981012,2025.9,2024.8,2.3049384]
[1770451862700,2.28981012,2025.9,2024.8,2.5520084]
[1770451863095,0.25059821,2026.7,2025.1,0.24704]
[1770451863096,2.28981012,2026.6,2025.1,0.24704]
[1770451863300,2.28981012,2026.6,2025.2,2.5519684]
[1770451863504,2.28981012,2026.5,2025.2,2.5519684]
[1770451863802,7.23581012,2026.5,2025.2,2.5519684]
[1770451864006,7.23581012,2026.5,2024.4,5.70554066]
[1770451864007,2.28981012,2025.3,2023.2,2.3049384]
[1770451864311,2.28981012,2024.6,2023.4,2.5521884]
[1770451864496,2.28981012,2024.6,2023.6,2.5521584]
[1770451864702,2.28981012,2024.6,2023.6,2.3049384]
[1770451864902,7.23960969,2024.6,2023.6,0.00350868]
[1770451865100,2.28981012,2024.5,2023.6,0.00350868]
[1770451865901,2.28981012,2024.5,2023.6,2.3840515]
[1770451866106,2.28981012,2024.5,2023.6,0.00350868]
[1770451866305,2.28981012,2024.5,2023.1,2.38054282]
[1770451866503,2.28981012,2024.5,2022.6,2.38054282]
[1770451866811,2.54536589,2024.2,2022.6,2.38054282]
[1770451867005,2.54536589,2024.2,2022.6,2.85885775]
[1770451867407,2.54536589,2024.2,2022.6,2.86379976]
[1770451867715,2.54536589,2024.2,2022.7,2.38054282]
[1770451869414,2.54536589,2024.2,2023.0,2.78554156]
[1770451870611,2.54536589,2024.2,2023.2,2.53825156]
[1770451870807,2.46617761,2024.5,2023.2,2.53825156]
[1770451871009,2.46617761,2024.5,2022.9,3.07677471]
[1770451871010,2.46617761,2024.5,2023.4,2.53825156]
[1770451871416,2.46617761,2024.5,2023.4,2.78550156]
[1770451872812,2.46617761,2024.5,2023.6,2.53825156]
[1770451875316,2.46617761,2025.2,2024.0,2.53825156]
[1770451876310,2.47102433,2025.2,2024.0,2.53825156]
[1770451876816,4.44014,2025.4,2024.0,2.53825156]
[1770451877014,2.46617761,2026.1,2024.8,0.30727556]
[1770451877409,2.46617761,2026.1,2024.9,0.30727556]
[1770451877712,2.46617761,2026.1,2025.1,0.30727556]
[1770451878119,2.47036476,2026.1,2025.1,0.31074156]
[1770451882013,2.47036476,2026.1,2025.5,0.71489626]
[1770451882222,0.00418715,2026.1,2025.5,0.71489626]
[1770451882616,2.47036476,2026.1,2025.4,0.247]
[1770451883820,2.47036476,2026.1,2025.1,0.003466]
[1770451885227,2.47036476,2026.1,2025.1,0.62910789]
[1770451885426,2.47036476,2026.1,2025.1,1.13360677]
[1770451886217,5.86616533,2027.1,2025.9,0.24693]
[1770451886421,5.86616533,2027.1,2025.8,3.07677471]
[1770451886422,2.46617761,2027.0,2026.1,0.61571021]
[1770451886624,2.46617761,2027.0,2026.1,0.24691]
[1770451886927,2.46617761,2028.1,2026.5,0.61807291]
[1770451887320,2.47226909,2028.1,2026.5,0.61807291]
[1770451887523,2.46617761,2027.8,2026.4,0.24688]
[1770451889630,2.46617761,2027.7,2026.4,0.24688]
[1770451892425,2.49718439,2027.5,2026.4,0.24688]
[1770451893024,2.46617761,2027.4,2025.8,0.42882083]
[1770451893723,2.46617761,2027.3,2025.8,0.42882083]
[1770451893929,2.46617761,2026.8,2025.7,0.24696]
[1770451894331,2.46617761,2026.7,2025.7,0.24696]
[1770451894530,4.40874,2026.7,2026.0,0.24692]
[1770451894720,2.46617761,2027.3,2026.4,0.41727937]
[1770451894920,2.46617761,2027.3,2026.6,0.42253832]
[1770451895124,2.46617761,2027.3,2026.6,0.00486225]
[1770451897532,2.46617761,2027.3,2026.0,1.00277613]
[1770451898329,2.46617761,2027.3,2025.8,0.9961824]
[1770451898538,2.46617761,2027.3,2026.0,0.0051776]
[1770451899032,2.46617761,2027.3,2026.0,0.93654326]
[1770451900229,2.46617761,2027.3,2026.2,0.92453602]
[1770451900831,0.00609148,2028.1,2027.3,0.24677]
[1770451901028,2.61997576,2028.1,2027.4,0.92064567]
[1770451901533,2.6382502,2029.0,2027.6,0.92064567]
[1770451902235,2.64338049,2029.0,2027.7,0.9154798]
[1770451902934,2.6382502,2028.5,2027.6,0.0051905]
[1770451903333,2.6382502,2028.5,2027.6,0.95562806]
[1770451903834,2.6382502,2028.5,2027.6,0.0051905]
[1770451904039,2.6382502,2028.5,2026.9,0.24682]
[1770451904338,2.6382502,2028.5,2027.0,0.94880165]
[1770451904540,2.6382502,2028.5,2027.1,0.94880165]
[1770451904940,2.6382502,2028.5,2027.1,0.95454303]
[1770451906243,2.6382502,2028.1,2027.1,0.00574138]
[1770451906535,2.6382502,2028.1,2026.5,0.86240296]
[1770451907041,2.6382502,2027.9,2026.3,1.11379252]
[1770451907239,4.946,2027.7,2026.3,1.11379252]
[1770451907440,2.6382502,2027.6,2026.3,1.11379252]
[1770451907640,2.6382502,2027.6,2026.3,1.11744205]
[1770451907838,2.6382502,2027.5,2026.3,1.11744205]
[1770451908035,0.00346897,2027.5,2026.4,0.86059054]
[1770451908232,10.81530069,2028.6,2026.3,0.25053953]
[1770451908233,5.83083031,2028.6,2027.3,0.85712157]
[1770451908434,2.6382502,2028.5,2027.3,0.85712157]
[1770451909436,2.64385726,2028.5,2027.4,0.97249215]
[1770451910038,2.64385726,2028.5,2027.3,0.24677]
[1770451910438,7.58985726,2028.5,2027.3,0.24677]
[1770451910644,2.6382502,2028.4,2027.3,0.24677]
[1770451911336,2.6382502,2028.4,2027.3,1.24644713]
[1770451912541,2.6382502,2028.4,2027.5,0.99274355]
[1770451913442,0.00560706,2028.5,2027.5,0.99274355]
[1770451913644,2.79628433,2029.3,2028.2,4.08748269]
[1770451913839,2.79628433,2029.9,2028.7,0.2466]
[1770451914040,2.57925501,2030.3,2028.9,0.24657]
[1770451914348,2.79616088,2030.5,2028.8,5.64204165]
[1770451914546,2.80036685,2030.5,2029.4,0.24651]
[1770451914741,2.79616088,2030.3,2029.4,0.24651]
[1770451915144,2.70749137,2030.1,2029.4,0.24651]
[1770451915348,2.70749137,2030.1,2029.4,0.72710102]
[1770451915540,2.70749137,2029.9,2029.4,0.48059102]
[1770451915744,2.70749137,2029.9,2028.8,0.51459019]
[1770451916050,2.70747973,2029.8,2028.9,0.50081584]
[1770451916751,2.57925501,2029.7,2028.9,0.50081584]
[1770451918643,2.64984054,2030.4,2029.0,0.59970868]
[1770451918846,2.64984054,2030.3,2029.0,0.59970868]
[1770451919042,2.64984054,2030.3,2029.1,0.24655]
[1770451919247,2.77388014,2030.1,2029.2,0.34390693]
[1770451919658,0.00420597,2030.5,2029.4,1.13399]
[1770451919949,2.9458336,2031.4,2030.0,0.24644]
[1770451920151,2.94573575,2030.8,2030.0,0.24644]
[1770451920452,2.94573575,2030.8,2029.2,0.24654]
[1770451920644,1.56631405,2030.7,2029.2,0.24654]
[1770451920844,2.94573575,2030.6,2029.3,0.05611714]
[1770451921045,2.94573575,2030.6,2029.6,0.11180282]
[1770451921258,2.9178929,2030.4,2029.5,0.2465]
[1770451921757,2.9178929,2030.2,2029.5,0.2465]
[1770451922053,2.91783051,2030.0,2028.9,0.49138641]
[1770451922254,2.91783051,2030.0,2028.8,0.00554496]
[1770451922450,2.91783051,2029.8,2028.8,0.00554496]
[1770451922845,2.91783051,2029.6,2028.8,0.00554496]
[1770451923251,2.67833341,2029.4,2028.1,0.06747871]
[1770451923654,2.67833341,2029.4,2028.1,0.55710406]
[1770451924046,2.67861703,2029.2,2028.1,0.48962535]
[1770451924243,2.68348578,2029.2,2028.1,0.00550454]
[1770451924454,2.68348578,2029.2,2028.1,0.48696848]
[1770451924850,0.00486875,2029.2,2028.6,4.08748269]
[1770451925057,0.00486875,2029.2,2028.9,0.24658]
[1770451925248,2.6382502,2029.8,2029.0,0.24656]
[1770451925649,4.20456425,2029.7,2029.0,0.24656]
[1770451925850,2.6382502,2029.7,2029.0,0.24656]
[1770451926154,4.20456425,2029.7,2029.0,1.36454314]
[1770451926454,4.21014049,2029.7,2029.0,1.36454314]
[1770451926853,4.21014049,2029.7,2029.0,0.24656]
[1770451927051,2.70901986,2029.6,2029.0,0.24656]
[1770451927855,2.70901986,2029.4,2029.0,0.24656]
[1770451928053,2.70901986,2029.4,2028.3,0.24665]
[1770451928258,2.70901986,2029.4,2028.3,1.47553257]
[1770451928454,2.70901986,2029.2,2028.3,0.24665]
[1770451928658,2.70901986,2029.2,2028.3,1.47553257]
[1770451928861,2.70901986,2029.0,2028.3,0.24665]
[1770451929558,1.56631405,2028.9,2028.3,0.24665]
[1770451930057,1.56631405,2028.9,2028.1,1.66248287]
[1770451930058,1.07190405,2028.9,2028.4,1.41324576]
[1770451930261,2.70901986,2029.0,2028.4,1.41324576]
[1770451930461,3.78092391,2029.0,2028.4,1.41324576]
[1770451930760,2.972973,2030.0,2029.5,0.2465]
[1770451931355,2.972973,2030.0,2028.6,0.61177246]
[1770451931550,2.972973,2030.0,2028.9,0.85827246]
[1770451931761,2.972973,2030.0,2029.1,0.24655]
[1770451932058,2.97712428,2030.0,2029.1,0.24655]
[1770451932258,2.97712428,2030.0,2029.1,1.22254577]
[1770451932653,2.97712428,2030.0,2029.1,0.24655]
[1770451933860,2.97712428,2030.0,2028.4,0.24664]
[1770451934555,2.97712428,2030.0,2028.4,1.05309825]
[1770451934950,2.97712428,2030.0,2029.0,0.24655]
[1770451935458,2.972973,2031.6,2030.1,1.00852912]
[1770451935663,2.972973,2031.6,2030.1,0.24643]
[1770451936357,2.972973,2031.6,2030.1,1.04179258]
[1770451936558,2.97886817,2031.6,2030.6,0.24637]
[1770451938666,2.972973,2031.3,2030.1,0.00480767]
[1770451938868,2.972973,2031.2,2029.8,0.24646]
[1770451939366,2.972973,2030.9,2029.2,1.21921723]
[1770451939768,2.972973,2030.9,2029.3,1.21920723]
[1770451939966,2.972973,2030.9,2029.3,1.22487503]
[1770451940162,4.946,2031.1,2029.4,1.13399]
[1770451940365,2.972973,2031.0,2030.2,0.24641]
[1770451941064,2.972973,2031.0,2029.8,0.96521474]
[1770451941364,2.972973,2031.0,2029.6,1.16030205]
[1770451941771,7.918973,2030.8,2029.3,0.0056678]
[1770451942062,2.972973,2030.7,2029.3,0.0056678]
[1770451942263,2.972973,2030.5,2029.3,0.0056678]
[1770451942468,2.972973,2030.4,2029.3,0.0056678]
[1770451943060,2.972973,2030.3,2029.3,0.0056678]
[1770451943264,2.972973,2030.2,2029.3,0.0056678]
[1770451943960,2.972973,2029.9,2028.6,0.89809824]
[1770451944264,2.972973,2029.6,2028.5,0.24662]
[1770451944568,2.972973,2029.5,2028.5,0.24662]
[1770451945167,2.97895166,2029.5,2028.5,0.25205451]
[1770451946566,2.972973,2029.2,2028.1,0.48146394]
[1770451946766,2.972973,2029.2,2027.8,0.24671]
[1770451946966,2.972973,2029.2,2027.9,1.12849496]
[1770451947166,2.972973,2029.2,2027.9,0.24669]
[1770451947363,0.00597866,2029.5,2027.9,0.24669]
[1770451947364,0.00597866,2029.5,2028.9,0.88180496]
[1770451947565,2.97895166,2029.5,2028.6,0.88180496]
[1770451947761,2.972973,2029.8,2028.9,0.24657]
[1770451948067,2.972973,2029.8,2028.6,0.00596956]
[1770451948974,2.97792859,2029.8,2028.6,0.00596956]
[1770451952470,2.97792859,2029.8,2029.1,0.24655]
[1770451955982,2.97792859,2029.8,2028.6,0.00596956]
[1770451956976,0.00495559,2029.8,2028.7,0.88568293]
[1770451957171,5.59e-06,2029.8,2029.3,0.24653]
[1770451957480,2.89220587,2030.5,2029.3,1.13221293]
[1770451957982,2.89220587,2030.3,2029.3,0.24653]
[1770451958378,2.89726018,2030.3,2029.3,0.24653]
[1770451960580,2.89220587,2030.8,2029.9,1.11125004]
[1770451960772,2.89220587,2030.8,2030.0,0.85706292]
[1770451960977,2.40516453,2030.8,2030.0,0.24644]
[1770451961479,2.40979274,2030.8,2030.0,0.24644]
[1770451962084,2.40979274,2030.8,2029.3,1.37564344]
[1770451962379,2.40979274,2030.8,2029.3,1.62216344]
[1770451962781,2.40979274,2030.8,2029.4,0.24652]
[1770451962981,2.40979274,2030.8,2028.9,2.89785858]
[1770451962982,2.40979274,2030.8,2029.5,1.61431707]
[1770451963180,2.40979274,2030.8,2029.5,0.2465]
[1770451963382,2.89220587,2030.7,2029.5,0.2465]
[1770451963583,2.89220587,2030.7,2029.1,1.4187305]
[1770451963584,2.89220587,2030.5,2028.8,1.6653105]
[1770451963880,2.89220587,2030.3,2028.8,0.24658]
[1770451964383,2.89220587,2030.2,2028.8,0.24658]
[1770451964578,2.89220587,2029.9,2028.8,0.24658]
[1770451964784,2.89220587,2029.8,2028.8,0.24658]
[1770451965774,2.89220587,2029.8,2028.6,0.00596956]
[1770451965980,2.89220587,2029.7,2028.6,0.00596956]
[1770451966386,8.75505537,2029.7,2028.6,0.00596956]
[1770451966585,2.89220587,2029.5,2028.6,0.00596956]
[1770451966884,2.89220587,2029.4,2028.2,0.24666]
[1770451967677,2.89220587,2029.0,2027.9,0.50570283]
[1770451967884,2.89220587,2028.4,2027.5,0.24674]
[1770451968084,2.89220587,2028.4,2027.1,1.60438242]
[1770451968685,2.89220587,2028.3,2027.1,1.60438242]
[1770451968887,2.89657379,2028.3,2027.1,2.12659214]
[1770451969276,2.89657379,2028.3,2027.1,0.52220972]
[1770451969683,2.89220587,2028.2,2027.1,0.52220972]
[1770451971887,2.89220587,2028.2,2027.1,0.00509046]
[1770451972092,2.89220587,2028.2,2026.6,7.37924564]
[1770451972992,2.89220587,2028.1,2026.6,0.52370036]
[1770451973785,2.89220587,2028.0,2026.6,0.52370036]
[1770451974383,2.89220587,2028.0,2026.6,3.17667587]
[1770451974590,2.89220587,2028.0,2026.6,0.0057136]
[1770451974889,2.89220587,2027.7,2025.8,2.66117498]
[1770451975091,2.89220587,2027.6,2025.7,0.24696]
[1770451975487,2.89220587,2027.5,2025.7,0.24696]
[1770451975894,2.89220587,2027.4,2025.7,0.25166834]
[1770451976197,2.89220587,2027.3,2025.7,0.50399714]
[1770451977595,2.89220587,2027.3,2025.1,0.24703]
[1770451977895,2.89220587,2026.6,2024.9,0.51913977]
[1770451978095,2.89220587,2026.4,2024.3,2.86986487]
[1770451978293,2.89220587,2026.3,2024.3,2.86986487]
[1770451978486,2.89220587,2026.3,2024.3,0.75270579]
[1770451978797,2.89220587,2026.1,2024.4,2.85669711]
[1770451980093,2.89220587,2026.1,2024.4,3.10381711]
[1770451980397,2.89220587,2026.1,2024.6,2.85669711]
[1770451980793,2.89220587,2026.1,2024.5,0.24711]
[1770451981592,2.89220587,2026.1,2024.3,3.36625847]
[1770451981792,3.13912587,2026.1,2024.3,0.50956136]
[1770451981997,3.13912587,2026.1,2024.3,3.36625847]
[1770451982196,3.13912587,2026.1,2024.3,0.50956136]
[1770451982402,2.89220587,2025.5,2023.4,3.10393711]
[1770451982795,2.89220587,2025.4,2023.4,3.10393711]
[1770451983395,2.89220587,2025.4,2023.4,3.62094262]
[1770451983997,2.89220587,2025.4,2023.5,2.85669711]
[1770451984299,2.89220587,2025.2,2023.5,2.85669711]
[1770451984497,2.89220587,2025.2,2023.4,0.76424551]
[1770451984800,2.89220587,2025.1,2023.4,0.76424551]
[1770451985298,2.89220587,2025.1,2023.5,3.10392711]
[1770451985495,2.89220587,2025.1,2023.8,3.10389711]
[1770451989006,2.76081809,2024.6,2023.4,0.51700551]
[1770451989209,2.76508213,2024.6,2023.4,0.51700551]
[1770451991504,7.77383688,2024.4,2023.4,0.00517736]
[1770451991703,2.82783688,2024.2,2022.8,3.00004516]
[1770451992209,2.82783688,2024.2,2023.3,2.99998516]
[1770451992600,2.82783688,2024.2,2023.3,3.00374599]
[1770451992808,2.82783688,2024.2,2023.4,0.24725]
[1770451993698,2.82783688,2024.5,2023.6,2.99995516]
[1770451994604,2.82783688,2024.4,2023.6,0.24722]
[1770451994805,2.82783688,2024.2,2023.3,0.00376083]
[1770451995200,2.82783688,2024.2,2023.3,3.00375599]
[1770451995404,2.82783688,2024.2,2023.7,2.99993516]
[1770451995909,2.82783688,2024.5,2023.7,2.99993516]
[1770451997313,7.77383688,2024.5,2023.7,2.99993516]
[1770451997906,2.82783688,2024.4,2023.7,2.99993516]
[1770451998821,2.83210092,2024.6,2023.8,2.99992516]
[1770452001414,0.00426404,2024.6,2024.3,2.99987516]
[1770452001714,7.77383688,2025.3,2024.5,2.99984516]
[1770452002116,2.82783688,2025.2,2024.5,2.99984516]
[1770452002518,2.83236903,2025.2,2024.5,2.99984516]
[1770452004318,0.00453215,2025.2,2024.8,2.99980516]
[1770452004518,4.946,2025.8,2025.0,2.99978516]
[1770452004519,2.82783688,2025.8,2025.0,2.99978516]
[1770452004815,2.82783688,2025.8,2024.8,2.75865756]
[1770452005013,2.82783688,2025.8,2024.8,0.0059224]
[1770452005212,2.82783688,2025.5,2024.8,0.0059224]
[1770452005419,2.82783688,2025.3,2024.4,0.24712]
[1770452005620,2.82783688,2025.3,2024.4,2.99985516]
[1770452006422,2.83271965,2025.3,2024.4,3.00597374]
[1770452006713,0.00488277,2025.3,2024.6,2.75273516]
[1770452007018,2.83271965,2025.3,2024.6,2.75273516]
[1770452008520,2.83271965,2025.3,2024.6,2.99982516]
[1770452008917,0.00488277,2025.3,2024.6,2.99982516]
[1770452009320,0.00488277,2025.3,2024.6,2.75273516]
[1770452009616,0.00488277,2025.3,2024.4,0.00611858]
[1770452009617,0.00488277,2025.3,2024.9,2.75273516]
[1770452010014,2.82783688,2025.7,2025.0,2.99978516]
[1770452010416,8.65473714,2025.9,2025.0,2.99978516]
[1770452010727,2.82783688,2025.9,2025.0,2.99978516]
[1770452010926,2.8315915,2025.9,2025.0,2.99978516]
[1770452011415,2.82783688,2025.8,2025.0,2.99978516]
[1770452011817,0.00375462,2025.9,2025.4,2.99973516]
[1770452012018,2.8315915,2025.9,2025.4,0.247]
[1770452012226,2.8315915,2025.9,2025.4,2.99973516]
[1770452012526,2.8315915,2025.9,2025.4,0.247]
[1770452012927,2.8315915,2025.9,2024.8,2.99980516]
[1770452013128,2.82783688,2025.8,2024.8,2.99980516]
[1770452014825,2.82783688,2025.8,2025.0,2.75273516]
[1770452015334,2.82783688,2025.8,2024.9,0.24706]
[1770452015727,2.82783688,2025.8,2024.9,2.99979516]
[1770452017838,2.82783688,2025.8,2025.0,3.00136684]
[1770452018031,0.00375462,2025.9,2025.2,3.00134684]
[1770452018628,2.68317211,2025.9,2025.4,2.75431684]
[1770452018831,2.68317211,2025.9,2025.3,3.00132684]
[1770452019532,0.00375462,2025.9,2025.3,3.00132684]
[1770452020032,0.00375462,2025.9,2025.6,2.75431684]
[1770452020237,2.67941749,2026.3,2025.5,0.24699]
[1770452020526,2.67941749,2026.3,2025.5,3.00130684]
[1770452020731,2.67941749,2026.3,2025.5,3.52185433]
[1770452021630,2.68501131,2026.3,2025.5,3.52185433]
[1770452022234,2.67941749,2025.9,2024.8,2.75431684]
[1770452022441,2.67941749,2025.6,2024.8,2.75431684]
[1770452022639,2.67941749,2025.6,2024.8,3.28100495]
[1770452023330,5.82690026,2025.9,2025.0,2.75431684]
[1770452023535,2.67941749,2025.8,2025.0,2.75431684]
[1770452023837,2.67941749,2025.8,2025.1,0.24704]
[1770452024037,2.67941749,2025.8,2025.1,3.00135684]
[1770452024832,2.67941749,2025.8,2025.1,0.24704]
[1770452025234,8.50631775,2026.0,2025.1,3.00135684]
[1770452025440,2.67941749,2025.9,2025.1,3.00135684]
[1770452025638,8.50631775,2026.0,2025.3,3.00132684]
[1770452025839,2.67941749,2025.9,2025.3,0.24701]
[1770452026742,2.67941749,2025.9,2025.3,3.00132684]
[1770452027642,8.50631775,2026.0,2025.3,3.00132684]
[1770452028342,5.82690026,2025.9,2025.3,3.00132684]
[1770452029137,8.50631775,2025.9,2025.3,3.00132684]
[1770452030140,8.50631775,2025.9,2024.8,0.77375811]
[1770452030141,2.67941749,2025.7,2024.8,0.77375811]
[1770452030444,2.67941749,2025.6,2024.8,0.77375811]
[1770452031045,5.82690026,2025.7,2024.9,3.00137684]
[1770452031438,5.82690026,2025.7,2025.1,3.00135684]
[1770452031645,5.82690026,2025.7,2025.3,2.75431684]
[1770452032141,8.50631775,2025.7,2025.2,3.00134684]
[1770452032343,5.82690026,2025.7,2025.2,3.00134684]
[1770452032543,8.50631775,2025.7,2025.2,3.00134684]
[1770452032746,5.82690026,2025.7,2025.2,3.00134684]
[1770452033549,7.70345982,2025.7,2025.2,3.00134684]
[1770452033842,5.02404233,2025.7,2025.2,3.00134684]
[1770452035247,2.67941749,2025.6,2025.2,0.24703]
[1770452035751,2.67941749,2025.6,2024.8,3.28100495]
[1770452036047,2.67941749,2025.6,2024.8,2.75431684]
[1770452036638,2.67941749,2025.6,2025.2,0.24702]
[1770452036845,2.67941749,2025.6,2025.2,3.00133684]
[1770452037146,9.96304281,2025.8,2025.2,3.00133684]
[1770452040352,8.62351908,2026.2,2025.7,2.75431684]
[1770452040553,22.11823726,2026.4,2025.7,2.75431684]
[1770452040753,2.68501131,2026.3,2025.7,2.75431684]
[1770452041051,2.68501131,2026.3,2025.9,3.00125684]
[1770452041353,2.68501131,2026.3,2025.9,0.25174899]
[1770452041555,2.68501131,2026.3,2025.3,2.75431684]
[1770452041853,2.67941749,2026.2,2025.4,0.247]
[1770452042753,2.67941749,2026.1,2025.4,0.2521605]
[1770452043252,2.67941749,2026.0,2025.4,0.2521605]
[1770452043453,2.67941749,2025.9,2024.9,2.75431684]
[1770452044447,1.37148145,2025.9,2025.4,3.00131684]
[1770452044653,11.30293657,2026.1,2025.4,3.00131684]
[1770452044855,2.67941749,2026.0,2025.4,3.00131684]
[1770452045055,2.67941749,2026.0,2025.4,0.247]
[1770452045548,2.67941749,2025.9,2024.9,3.00569222]
[1770452045958,2.67941749,2025.9,2025.1,2.79541643]
[1770452046553,2.67941749,2025.9,2025.1,3.04244643]
[1770452047358,2.67941749,2025.9,2025.3,2.79541643]
[1770452047961,2.67941749,2025.9,2025.2,0.24702]
[1770452049858,2.67941749,2025.9,2025.2,3.13005161]
[1770452050161,11.30293657,2025.9,2024.9,0.00431538]
[1770452050361,2.89703315,2025.4,2024.9,0.00431538]
[1770452051355,7.39440544,2025.5,2024.9,3.13440699]
[1770452051760,7.39440544,2025.6,2025.1,3.13006161]
[1770452051966,10.29143859,2025.6,2025.1,3.13006161]
[1770452052156,7.39440544,2025.7,2025.1,3.13006161]
[1770452052357,2.89703315,2025.6,2025.1,3.13006161]
[1770452053161,10.29143859,2025.6,2024.9,0.00431538]
[1770452053464,8.81389161,2025.3,2024.9,2.88734699]
[1770452053661,5.91685846,2025.3,2024.9,2.88734699]
[1770452054076,8.81389161,2025.3,2024.9,2.88734699]
[1770452054665,8.01093208,2025.3,2024.9,2.88734699]
[1770452055263,8.01093208,2025.3,2024.9,0.00431538]
[1770452055567,2.89703315,2025.2,2024.8,0.5213198]
[1770452055766,2.89703315,2025.2,2024.7,3.13012161]
[1770452056065,2.89703315,2025.2,2024.7,3.64014128]
[1770452056666,2.89703315,2025.2,2024.7,3.6446661]
[1770452057064,2.89703315,2025.2,2024.8,3.13011161]
[1770452057371,2.89703315,2025.4,2024.8,3.13011161]
[1770452057761,7.39440544,2025.5,2024.9,3.13009161]
[1770452058565,2.94085036,2026.1,2025.6,0.24698]
[1770452058768,10.24338567,2026.1,2025.5,0.55081]
[1770452059066,9.74886567,2026.1,2025.5,0.55081]
[1770452060268,0.00559382,2026.3,2025.9,1.98835063]
[1770452060469,12.06029264,2026.3,2025.9,0.24694]
[1770452060870,9.16325949,2026.3,2025.9,1.98835063]
[1770452061673,2.89703315,2027.0,2026.2,0.2469]
[1770452061862,2.89703315,2026.8,2026.2,0.2469]
[1770452062364,12.05469882,2026.7,2026.2,1.61008368]
[1770452062666,2.89703315,2027.1,2026.5,0.24687]
[1770452063070,2.89703315,2026.9,2026.5,0.24687]
[1770452063473,2.89703315,2026.8,2026.5,0.24687]
[1770452063769,2.90232642,2026.8,2026.5,0.24687]
[1770452064169,2.89703315,2026.7,2026.5,0.24687]
[1770452064369,8.65605894,2026.8,2026.2,1.6689273]